Workbook

Sheet SIMULADOR
H1: TIPO DE TASA
H2: IBR | K2: =ABS((SUM(J24:J1048576)-J10)) -> 0
K3: Tasa Subs inicial | L3: =VLOOKUP($H$6,Hoja2!$B$2:$F$206,2,0) -> 6
H4: REESTRUCTURACION | K4: Tasa Int Inicial | L4: =IF($H$2="IBR",VLOOKUP($H$6,Hoja2!$B$2:$F$206,5,0),VLOOKUP($H$6,Hoja2!$B$2:$F$206,4,0)) -> 0 | N4: IBR
H5: =IF((SUM(J24:J376)-Vr_Prestamo)=0,"","Verificar los Flujos de la Operación Propuesta") ->  | K5: =ABS(IF(K2>0,0,ABS((SUM(J24:J376)-J10)))) -> 0 | L5: =+L3+L4 -> 6
H6: AIS 2007 PEQUEÑO PRODUCTOR | O6: NUEVA TASA BENEF | P6: =+IF(O7<L4,"REVISAR TASA BENEF","OK") -> OK
H7: Beneficiario | O7: =+(L3-J14)+L4 -> 6
H8: ID Beneficiario
H9: N° AGROS
H10: Saldo Operación
H11: Cuotas a proyectar
H12: Fecha Inicio Normalizacion
H13: Tasa_Finagro | L13: DISPONIBILIDAD
H14: Tasa Int. Financiero | L14: Valor Subsidio Disponible
H15: Valor Subs_Finagro
H16: Valor Subs_Int. Financiero | J16: =+SUM(O24:O100) -> 0
H17: Total Subsidio | J17: =IF(ISERROR(J15+J16),0,J15+J16) -> 0 | L17: =+IF(K6>10000,1,0) -> 0
H19: =IF(J14>L3,"NUEVA TASA MAYOR A TASA INICIAL NORMALIZACION VIABLE",IF(K2>0,"Revise los Flujos de la operación Inicial",IF(K5>0,"Revise los Flujos de la operación Propuesta",IF(O14-J17>=0,"NORMALIZACION VIABLE","NORMALIZACION NO VIABLE")))) -> NORMALIZACION VIABLE
S20: =+No_Años2 -> 0
H22: Pago Nº | I22: F. Pagos | J22: Flujos Capital | K22: Saldo final | L22: Subsidio Finagro | M22: PLAZO | N22: TASA NOMINAL | O22: Vr Subsidio IF
B24: =IF(Values_Entered,1,"") -> 1 | F24: =IF(OR(E24=0,E24="OK"),0,DAYS360(Fecha_Inicio,E24)) -> 0 | H24: 1 | K24: =+J10-J24 -> 0 | L24: =IFERROR(ROUND((J10*(ROUND(((1+$J$13/100)^((DAYS360(Fecha_Inicio,I24,1))/360)-1)*(360/(DAYS360(Fecha_Inicio,I24,1))),4)))/(360/DAYS360(Fecha_Inicio,I24,1)),0),0) -> 0 | M24: =+IF($H$2="IBR",(I24-Fecha_Inicio),DAYS360(Fecha_Inicio,I24)) -> 0 | N24: =IFERROR(IF($H$2="IBR",(ROUND(((1+($J$14%))^(1/(365/M24))-1)*(365/M24),10)),ROUND(((1+($J$14%))^(1/(360/M24))-1)*(360/M24),10)),0) -> 0 | O24: =+IFERROR(IF($H$2="IBR",ROUND(J10*N24/365*M24,0),ROUND(J10*N24/360*M24,0)),0) -> 0
B25: =IF(AND(F24>0,E24>1),IF(Values_Entered,B24+0,""),IF(Values_Entered,B24+1,"")) -> 2 | F25: =IF(AND(F24>0,E24>0),(360/Pagos_Anuales)-F24,IF(OR(E25=0,E25="OK"),0,DAYS360(C24,E25))) -> 0 | H25: =IF(Values_Entered,H24+1,"") -> 2 | K25: =+K24-J25 -> 0 | L25: =IFERROR(ROUND((K24*(ROUND(((1+$J$13/100)^((DAYS360(I24,I25,1))/360)-1)*(360/(DAYS360(I24,I25,1))),4)))/(360/DAYS360(I24,I25,1)),0),0) -> 0 | M25: =+IF($H$2="IBR",(I25-I24),DAYS360(I24,I25)) -> 0 | N25: =IFERROR(IF($H$2="IBR",(ROUND(((1+($J$14%))^(1/(365/M25))-1)*(365/M25),10)),ROUND(((1+($J$14%))^(1/(360/M25))-1)*(360/M25),10)),0) -> 0 | O25: =+IFERROR(IF($H$2="IBR",ROUND(K24*N25/365*M25,0),ROUND(K24*N25/360*M25,0)),0) -> 0
B26: =IF(AND(F25>0,E25>1),IF(Values_Entered,B25+0,""),IF(Values_Entered,B25+1,"")) -> 3 | E26: =+IF($D$15>C26,"OK",0) -> 0 | F26: 0 | H26: =IF(Values_Entered,H25+1,"") -> 3 | K26: 0 | L26: 0 | M26: =+IF($H$2="IBR",(I26-I25),DAYS360(I25,I26)) -> 0 | N26: =IFERROR(IF($H$2="IBR",(ROUND(((1+($J$14%))^(1/(365/M26))-1)*(365/M26),10)),ROUND(((1+($J$14%))^(1/(360/M26))-1)*(360/M26),10)),0) -> 0 | O26: =+IFERROR(IF($H$2="IBR",ROUND(K25*N26/365*M26,0),ROUND(K25*N26/360*M26,0)),0) -> 0
B27: =IF(AND(F26>0,E26>1),IF(Values_Entered,B26+0,""),IF(Values_Entered,B26+1,"")) -> 4 | E27: 0 | F27: 0 | H27: =IF(Values_Entered,H26+1,"") -> 4 | K27: 0 | L27: 0 | M27: 0 | N27: 0 | O27: 0
B28: =IF(AND(F27>0,E27>1),IF(Values_Entered,B27+0,""),IF(Values_Entered,B27+1,"")) -> 5 | E28: 0 | F28: 0 | H28: =IF(Values_Entered,H27+1,"") -> 5 | K28: 0 | L28: 0 | M28: 0 | N28: 0 | O28: 0
B29: =IF(AND(F28>0,E28>1),IF(Values_Entered,B28+0,""),IF(Values_Entered,B28+1,"")) -> 6 | E29: 0 | F29: 0 | H29: =IF(Values_Entered,H28+1,"") -> 6 | K29: =+K28-J29 -> 0 | L29: =IFERROR(ROUND((K28*(ROUND(((1+$J$13/100)^((DAYS360(I28,I29,1))/360)-1)*(360/(DAYS360(I28,I29,1))),4)))/(360/DAYS360(I28,I29,1)),0),0) -> 0 | M29: 0 | N29: 0 | O29: 0
B30: =IF(AND(F29>0,E29>1),IF(Values_Entered,B29+0,""),IF(Values_Entered,B29+1,"")) -> 7 | E30: 0 | F30: 0 | H30: =IF(Values_Entered,H29+1,"") -> 7 | K30: 0 | L30: 0 | M30: 0 | N30: 0 | O30: 0
B31: =IF(AND(F30>0,E30>1),IF(Values_Entered,B30+0,""),IF(Values_Entered,B30+1,"")) -> 8 | E31: 0 | F31: 0 | H31: =IF(Values_Entered,H30+1,"") -> 8 | K31: 0 | L31: 0 | M31: 0 | N31: 0 | O31: 0
B32: =IF(AND(F31>0,E31>1),IF(Values_Entered,B31+0,""),IF(Values_Entered,B31+1,"")) -> 9 | E32: 0 | F32: 0 | H32: =IF(Values_Entered,H31+1,"") -> 9 | K32: 0 | L32: 0 | M32: 0 | N32: 0 | O32: 0
B33: =IF(AND(F32>0,E32>1),IF(Values_Entered,B32+0,""),IF(Values_Entered,B32+1,"")) -> 10 | E33: 0 | F33: 0 | H33: =IF(Values_Entered,H32+1,"") -> 10 | K33: 0 | L33: 0 | M33: 0 | N33: 0 | O33: 0
B34: =IF(AND(F33>0,E33>1),IF(Values_Entered,B33+0,""),IF(Values_Entered,B33+1,"")) -> 11 | E34: 0 | F34: 0 | H34: =IF(Values_Entered,H33+1,"") -> 11 | K34: 0 | L34: 0 | M34: 0 | N34: 0 | O34: 0
B35: =IF(AND(F34>0,E34>1),IF(Values_Entered,B34+0,""),IF(Values_Entered,B34+1,"")) -> 12 | E35: 0 | F35: 0 | H35: =IF(Values_Entered,H34+1,"") -> 12 | K35: 0 | L35: 0 | M35: 0 | N35: 0 | O35: 0
B36: =IF(AND(F35>0,E35>1),IF(Values_Entered,B35+0,""),IF(Values_Entered,B35+1,"")) -> 13 | E36: 0 | F36: 0 | H36: =IF(Values_Entered,H35+1,"") -> 13 | K36: 0 | L36: 0 | M36: 0 | N36: 0 | O36: 0
B37: =IF(AND(F36>0,E36>1),IF(Values_Entered,B36+0,""),IF(Values_Entered,B36+1,"")) -> 14 | E37: 0 | F37: 0 | H37: =IF(Values_Entered,H36+1,"") -> 14 | K37: 0 | L37: 0 | M37: 0 | N37: 0 | O37: 0
B38: =IF(AND(F37>0,E37>1),IF(Values_Entered,B37+0,""),IF(Values_Entered,B37+1,"")) -> 15 | E38: 0 | F38: 0 | H38: =IF(Values_Entered,H37+1,"") -> 15 | K38: 0 | L38: 0 | M38: 0 | N38: 0 | O38: 0
B39: =IF(AND(F38>0,E38>1),IF(Values_Entered,B38+0,""),IF(Values_Entered,B38+1,"")) -> 16 | E39: 0 | F39: 0 | H39: =IF(Values_Entered,H38+1,"") -> 16 | K39: 0 | L39: 0 | M39: 0 | N39: 0 | O39: 0
B40: =IF(AND(F39>0,E39>1),IF(Values_Entered,B39+0,""),IF(Values_Entered,B39+1,"")) -> 17 | E40: 0 | F40: 0 | H40: =IF(Values_Entered,H39+1,"") -> 17 | K40: 0 | L40: 0 | M40: 0 | N40: 0 | O40: 0
B41: =IF(AND(F40>0,E40>1),IF(Values_Entered,B40+0,""),IF(Values_Entered,B40+1,"")) -> 18 | E41: 0 | F41: 0 | H41: =IF(Values_Entered,H40+1,"") -> 18 | K41: 0 | L41: 0 | M41: 0 | N41: 0 | O41: 0
B42: =IF(AND(F41>0,E41>1),IF(Values_Entered,B41+0,""),IF(Values_Entered,B41+1,"")) -> 19 | E42: 0 | F42: 0 | H42: =IF(Values_Entered,H41+1,"") -> 19 | K42: 0 | L42: 0 | M42: 0 | N42: 0 | O42: 0
B43: =IF(AND(F42>0,E42>1),IF(Values_Entered,B42+0,""),IF(Values_Entered,B42+1,"")) -> 20 | E43: 0 | F43: 0 | H43: =IF(Values_Entered,H42+1,"") -> 20 | K43: 0 | L43: 0 | M43: 0 | N43: 0 | O43: 0
B44: =IF(AND(F43>0,E43>1),IF(Values_Entered,B43+0,""),IF(Values_Entered,B43+1,"")) -> 21 | E44: 0 | F44: 0 | H44: =IF(Values_Entered,H43+1,"") -> 21 | K44: 0 | L44: 0 | M44: 0 | N44: 0 | O44: 0
B45: =IF(AND(F44>0,E44>1),IF(Values_Entered,B44+0,""),IF(Values_Entered,B44+1,"")) -> 22 | E45: 0 | F45: 0 | H45: =IF(Values_Entered,H44+1,"") -> 22 | K45: 0 | L45: 0 | M45: 0 | N45: 0 | O45: 0
B46: =IF(AND(F45>0,E45>1),IF(Values_Entered,B45+0,""),IF(Values_Entered,B45+1,"")) -> 23 | E46: 0 | F46: 0 | H46: =IF(Values_Entered,H45+1,"") -> 23 | K46: 0 | L46: 0 | M46: 0 | N46: 0 | O46: 0
B47: =IF(AND(F46>0,E46>1),IF(Values_Entered,B46+0,""),IF(Values_Entered,B46+1,"")) -> 24 | E47: 0 | F47: 0 | H47: =IF(Values_Entered,H46+1,"") -> 24 | K47: 0 | L47: 0 | M47: 0 | N47: 0 | O47: 0
B48: =IF(AND(F47>0,E47>1),IF(Values_Entered,B47+0,""),IF(Values_Entered,B47+1,"")) -> 25 | E48: 0 | F48: 0 | H48: =IF(Values_Entered,H47+1,"") -> 25 | K48: 0 | L48: 0 | M48: 0 | N48: 0 | O48: 0
B49: =IF(AND(F48>0,E48>1),IF(Values_Entered,B48+0,""),IF(Values_Entered,B48+1,"")) -> 26 | E49: 0 | F49: 0 | H49: =IF(Values_Entered,H48+1,"") -> 26 | K49: 0 | L49: 0 | M49: 0 | N49: 0 | O49: 0
B50: =IF(AND(F49>0,E49>1),IF(Values_Entered,B49+0,""),IF(Values_Entered,B49+1,"")) -> 27 | E50: 0 | F50: 0 | H50: =IF(Values_Entered,H49+1,"") -> 27 | K50: 0 | L50: 0 | M50: 0 | N50: 0 | O50: 0
B51: =IF(AND(F50>0,E50>1),IF(Values_Entered,B50+0,""),IF(Values_Entered,B50+1,"")) -> 28 | E51: 0 | F51: 0 | H51: =IF(Values_Entered,H50+1,"") -> 28 | K51: 0 | L51: 0 | M51: 0 | N51: 0 | O51: 0
B52: =IF(AND(F51>0,E51>1),IF(Values_Entered,B51+0,""),IF(Values_Entered,B51+1,"")) -> 29 | E52: 0 | F52: 0 | H52: =IF(Values_Entered,H51+1,"") -> 29 | K52: 0 | L52: 0 | M52: 0 | N52: 0 | O52: 0
B53: =IF(AND(F52>0,E52>1),IF(Values_Entered,B52+0,""),IF(Values_Entered,B52+1,"")) -> 30 | E53: 0 | F53: 0 | H53: =IF(Values_Entered,H52+1,"") -> 30 | K53: 0 | L53: 0 | M53: 0 | N53: 0 | O53: 0
B54: =IF(AND(F53>0,E53>1),IF(Values_Entered,B53+0,""),IF(Values_Entered,B53+1,"")) -> 31 | E54: 0 | F54: 0 | H54: =IF(Values_Entered,H53+1,"") -> 31 | K54: 0 | L54: 0 | M54: 0 | N54: 0 | O54: 0
B55: =IF(AND(F54>0,E54>1),IF(Values_Entered,B54+0,""),IF(Values_Entered,B54+1,"")) -> 32 | E55: 0 | F55: 0 | H55: =IF(Values_Entered,H54+1,"") -> 32 | K55: 0 | L55: 0 | M55: 0 | N55: 0 | O55: 0
B56: =IF(AND(F55>0,E55>1),IF(Values_Entered,B55+0,""),IF(Values_Entered,B55+1,"")) -> 33 | E56: 0 | F56: 0 | H56: =IF(Values_Entered,H55+1,"") -> 33 | K56: 0 | L56: 0 | M56: 0 | N56: 0 | O56: 0
B57: =IF(AND(F56>0,E56>1),IF(Values_Entered,B56+0,""),IF(Values_Entered,B56+1,"")) -> 34 | E57: 0 | F57: 0 | H57: =IF(Values_Entered,H56+1,"") -> 34 | K57: 0 | L57: 0 | M57: 0 | N57: 0 | O57: 0
B58: =IF(AND(F57>0,E57>1),IF(Values_Entered,B57+0,""),IF(Values_Entered,B57+1,"")) -> 35 | E58: 0 | F58: 0 | H58: =IF(Values_Entered,H57+1,"") -> 35 | K58: 0 | L58: 0 | M58: 0 | N58: 0 | O58: 0
B59: =IF(AND(F58>0,E58>1),IF(Values_Entered,B58+0,""),IF(Values_Entered,B58+1,"")) -> 36 | E59: 0 | F59: 0 | H59: =IF(Values_Entered,H58+1,"") -> 36 | K59: 0 | L59: 0 | M59: 0 | N59: 0 | O59: 0
B60: =IF(AND(F59>0,E59>1),IF(Values_Entered,B59+0,""),IF(Values_Entered,B59+1,"")) -> 37 | E60: 0 | F60: 0 | H60: =IF(Values_Entered,H59+1,"") -> 37 | K60: 0 | L60: 0 | M60: 0 | N60: 0 | O60: 0
B61: =IF(AND(F60>0,E60>1),IF(Values_Entered,B60+0,""),IF(Values_Entered,B60+1,"")) -> 38 | E61: 0 | F61: 0 | H61: =IF(Values_Entered,H60+1,"") -> 38 | K61: 0 | L61: 0 | M61: 0 | N61: 0 | O61: 0
B62: =IF(AND(F61>0,E61>1),IF(Values_Entered,B61+0,""),IF(Values_Entered,B61+1,"")) -> 39 | E62: 0 | F62: 0 | H62: =IF(Values_Entered,H61+1,"") -> 39 | K62: 0 | L62: 0 | M62: 0 | N62: 0 | O62: 0
B63: =IF(AND(F62>0,E62>1),IF(Values_Entered,B62+0,""),IF(Values_Entered,B62+1,"")) -> 40 | E63: 0 | F63: 0 | H63: =IF(Values_Entered,H62+1,"") -> 40 | K63: 0 | L63: 0 | M63: 0 | N63: 0 | O63: 0
B64: =IF(AND(F63>0,E63>1),IF(Values_Entered,B63+0,""),IF(Values_Entered,B63+1,"")) -> 41 | E64: 0 | F64: 0 | H64: =IF(Values_Entered,H63+1,"") -> 41 | K64: 0 | L64: 0 | M64: 0 | N64: 0 | O64: 0
B65: =IF(AND(F64>0,E64>1),IF(Values_Entered,B64+0,""),IF(Values_Entered,B64+1,"")) -> 42 | E65: 0 | F65: 0 | H65: =IF(Values_Entered,H64+1,"") -> 42 | K65: 0 | L65: 0 | M65: 0 | N65: 0 | O65: 0
B66: =IF(AND(F65>0,E65>1),IF(Values_Entered,B65+0,""),IF(Values_Entered,B65+1,"")) -> 43 | E66: 0 | F66: 0 | H66: =IF(Values_Entered,H65+1,"") -> 43 | K66: 0 | L66: 0 | M66: 0 | N66: 0 | O66: 0
B67: =IF(AND(F66>0,E66>1),IF(Values_Entered,B66+0,""),IF(Values_Entered,B66+1,"")) -> 44 | E67: 0 | F67: 0 | H67: =IF(Values_Entered,H66+1,"") -> 44 | K67: 0 | L67: 0 | M67: 0 | N67: 0 | O67: 0
B68: =IF(AND(F67>0,E67>1),IF(Values_Entered,B67+0,""),IF(Values_Entered,B67+1,"")) -> 45 | E68: 0 | F68: 0 | H68: =IF(Values_Entered,H67+1,"") -> 45 | K68: 0 | L68: 0 | M68: 0 | N68: 0 | O68: 0
B69: =IF(AND(F68>0,E68>1),IF(Values_Entered,B68+0,""),IF(Values_Entered,B68+1,"")) -> 46 | E69: 0 | F69: 0 | H69: =IF(Values_Entered,H68+1,"") -> 46 | K69: 0 | L69: 0 | M69: 0 | N69: 0 | O69: 0
B70: =IF(AND(F69>0,E69>1),IF(Values_Entered,B69+0,""),IF(Values_Entered,B69+1,"")) -> 47 | E70: 0 | F70: 0 | H70: =IF(Values_Entered,H69+1,"") -> 47 | K70: 0 | L70: 0 | M70: 0 | N70: 0 | O70: 0
B71: =IF(AND(F70>0,E70>1),IF(Values_Entered,B70+0,""),IF(Values_Entered,B70+1,"")) -> 48 | E71: 0 | F71: 0 | H71: =IF(Values_Entered,H70+1,"") -> 48 | K71: 0 | L71: 0 | M71: 0 | N71: 0 | O71: 0
B72: =IF(AND(F71>0,E71>1),IF(Values_Entered,B71+0,""),IF(Values_Entered,B71+1,"")) -> 49 | E72: 0 | F72: 0 | H72: =IF(Values_Entered,H71+1,"") -> 49 | K72: 0 | L72: 0 | M72: 0 | N72: 0 | O72: 0
B73: =IF(AND(F72>0,E72>1),IF(Values_Entered,B72+0,""),IF(Values_Entered,B72+1,"")) -> 50 | E73: 0 | F73: 0 | H73: =IF(Values_Entered,H72+1,"") -> 50 | K73: 0 | L73: 0 | M73: 0 | N73: 0 | O73: 0
B74: =IF(AND(F73>0,E73>1),IF(Values_Entered,B73+0,""),IF(Values_Entered,B73+1,"")) -> 51 | E74: 0 | F74: 0 | H74: =IF(Values_Entered,H73+1,"") -> 51 | K74: 0 | L74: 0 | M74: 0 | N74: 0 | O74: 0
B75: =IF(AND(F74>0,E74>1),IF(Values_Entered,B74+0,""),IF(Values_Entered,B74+1,"")) -> 52 | E75: 0 | F75: 0 | H75: =IF(Values_Entered,H74+1,"") -> 52 | K75: 0 | L75: 0 | M75: 0 | N75: 0 | O75: 0
B76: =IF(AND(F75>0,E75>1),IF(Values_Entered,B75+0,""),IF(Values_Entered,B75+1,"")) -> 53 | E76: 0 | F76: 0 | H76: =IF(Values_Entered,H75+1,"") -> 53 | K76: 0 | L76: 0 | M76: 0 | N76: 0 | O76: 0
B77: =IF(AND(F76>0,E76>1),IF(Values_Entered,B76+0,""),IF(Values_Entered,B76+1,"")) -> 54 | E77: 0 | F77: 0 | H77: =IF(Values_Entered,H76+1,"") -> 54 | K77: 0 | L77: 0 | M77: 0 | N77: 0 | O77: 0
B78: =IF(AND(F77>0,E77>1),IF(Values_Entered,B77+0,""),IF(Values_Entered,B77+1,"")) -> 55 | E78: 0 | F78: 0 | H78: =IF(Values_Entered,H77+1,"") -> 55 | K78: 0 | L78: 0 | M78: 0 | N78: 0 | O78: 0
B79: =IF(AND(F78>0,E78>1),IF(Values_Entered,B78+0,""),IF(Values_Entered,B78+1,"")) -> 56 | E79: 0 | F79: 0 | H79: =IF(Values_Entered,H78+1,"") -> 56 | K79: 0 | L79: 0 | M79: 0 | N79: 0 | O79: 0
B80: =IF(AND(F79>0,E79>1),IF(Values_Entered,B79+0,""),IF(Values_Entered,B79+1,"")) -> 57 | E80: 0 | F80: 0 | H80: =IF(Values_Entered,H79+1,"") -> 57 | K80: 0 | L80: 0 | M80: 0 | N80: 0 | O80: 0
B81: =IF(AND(F80>0,E80>1),IF(Values_Entered,B80+0,""),IF(Values_Entered,B80+1,"")) -> 58 | E81: 0 | F81: 0 | H81: =IF(Values_Entered,H80+1,"") -> 58 | K81: 0 | L81: 0 | M81: 0 | N81: 0 | O81: 0
B82: =IF(AND(F81>0,E81>1),IF(Values_Entered,B81+0,""),IF(Values_Entered,B81+1,"")) -> 59 | E82: 0 | F82: 0 | H82: =IF(Values_Entered,H81+1,"") -> 59 | K82: =+K81-J82 -> 0 | L82: =IFERROR(ROUND((K81*(ROUND(((1+$J$13/100)^((DAYS360(I81,I82,1))/360)-1)*(360/(DAYS360(I81,I82,1))),4)))/(360/DAYS360(I81,I82,1)),0),0) -> 0 | M82: 0 | N82: 0 | O82: 0
B83: =IF(AND(F82>0,E82>1),IF(Values_Entered,B82+0,""),IF(Values_Entered,B82+1,"")) -> 60 | E83: =+IF($D$15>C83,"OK",0) -> 0 | F83: 0 | H83: =IF(Values_Entered,H82+1,"") -> 60 | K83: 0 | L83: 0 | M83: 0 | N83: 0 | O83: 0
B84: =IF(AND(F83>0,E83>1),IF(Values_Entered,B83+0,""),IF(Values_Entered,B83+1,"")) -> 61 | E84: 0 | F84: 0 | H84: =IF(Values_Entered,H83+1,"") -> 61 | K84: 0 | L84: 0 | M84: 0 | N84: 0 | O84: 0
B85: =IF(AND(F84>0,E84>1),IF(Values_Entered,B84+0,""),IF(Values_Entered,B84+1,"")) -> 62 | E85: 0 | F85: 0 | H85: =IF(Values_Entered,H84+1,"") -> 62 | K85: 0 | L85: 0 | M85: 0 | N85: 0 | O85: 0
B86: =IF(AND(F85>0,E85>1),IF(Values_Entered,B85+0,""),IF(Values_Entered,B85+1,"")) -> 63 | E86: 0 | F86: 0 | H86: =IF(Values_Entered,H85+1,"") -> 63 | K86: 0 | L86: 0 | M86: 0 | N86: 0 | O86: 0
B87: =IF(AND(F86>0,E86>1),IF(Values_Entered,B86+0,""),IF(Values_Entered,B86+1,"")) -> 64 | E87: 0 | F87: 0 | H87: =IF(Values_Entered,H86+1,"") -> 64 | K87: 0 | L87: 0 | M87: 0 | N87: 0 | O87: 0
B88: =IF(AND(F87>0,E87>1),IF(Values_Entered,B87+0,""),IF(Values_Entered,B87+1,"")) -> 65 | E88: 0 | F88: 0 | H88: =IF(Values_Entered,H87+1,"") -> 65 | K88: 0 | L88: 0 | M88: 0 | N88: 0 | O88: 0
B89: =IF(AND(F88>0,E88>1),IF(Values_Entered,B88+0,""),IF(Values_Entered,B88+1,"")) -> 66 | E89: 0 | F89: =IF(AND(F88>0,E88>0),(360/Pagos_Anuales)-F88,IF(OR(E89=0,E89="OK"),0,DAYS360(C88,E89))) -> 0 | H89: =IF(Values_Entered,H88+1,"") -> 66 | K89: 0 | L89: 0 | M89: 0 | N89: 0 | O89: 0
B90: =IF(AND(F89>0,E89>1),IF(Values_Entered,B89+0,""),IF(Values_Entered,B89+1,"")) -> 67 | E90: 0 | F90: 0 | H90: =IF(Values_Entered,H89+1,"") -> 67 | K90: 0 | L90: 0 | M90: =+IF($H$2="IBR",(I90-I89),DAYS360(I89,I90)) -> 0 | N90: =IFERROR(IF($H$2="IBR",(ROUND(((1+($J$14%))^(1/(365/M90))-1)*(365/M90),10)),ROUND(((1+($J$14%))^(1/(360/M90))-1)*(360/M90),10)),0) -> 0 | O90: =+IFERROR(IF($H$2="IBR",ROUND(K89*N90/365*M90,0),ROUND(K89*N90/360*M90,0)),0) -> 0
B91: =IF(AND(F90>0,E90>1),IF(Values_Entered,B90+0,""),IF(Values_Entered,B90+1,"")) -> 68 | E91: 0 | F91: 0 | H91: =IF(Values_Entered,H90+1,"") -> 68 | K91: 0 | L91: 0 | M91: 0 | N91: 0 | O91: 0
B92: =IF(AND(F91>0,E91>1),IF(Values_Entered,B91+0,""),IF(Values_Entered,B91+1,"")) -> 69 | E92: 0 | F92: 0 | H92: =IF(Values_Entered,H91+1,"") -> 69 | K92: 0 | L92: 0 | M92: 0 | N92: 0 | O92: 0
B93: =IF(AND(F92>0,E92>1),IF(Values_Entered,B92+0,""),IF(Values_Entered,B92+1,"")) -> 70 | E93: 0 | F93: 0 | H93: =IF(Values_Entered,H92+1,"") -> 70 | K93: 0 | L93: 0 | M93: 0 | N93: 0 | O93: 0
B94: =IF(AND(F93>0,E93>1),IF(Values_Entered,B93+0,""),IF(Values_Entered,B93+1,"")) -> 71 | E94: 0 | F94: 0 | H94: =IF(Values_Entered,H93+1,"") -> 71 | K94: 0 | L94: 0 | M94: 0 | N94: 0 | O94: 0
B95: =IF(AND(F94>0,E94>1),IF(Values_Entered,B94+0,""),IF(Values_Entered,B94+1,"")) -> 72 | E95: 0 | F95: 0 | H95: =IF(Values_Entered,H94+1,"") -> 72 | K95: 0 | L95: 0 | M95: 0 | N95: 0 | O95: 0
B96: =IF(AND(F95>0,E95>1),IF(Values_Entered,B95+0,""),IF(Values_Entered,B95+1,"")) -> 73 | E96: 0 | F96: 0 | H96: =IF(Values_Entered,H95+1,"") -> 73 | K96: 0 | L96: 0 | M96: 0 | N96: 0 | O96: 0
B97: =IF(AND(F96>0,E96>1),IF(Values_Entered,B96+0,""),IF(Values_Entered,B96+1,"")) -> 74 | E97: 0 | F97: 0 | H97: =IF(Values_Entered,H96+1,"") -> 74 | K97: 0 | L97: 0 | M97: 0 | N97: 0 | O97: 0
B98: =IF(AND(F97>0,E97>1),IF(Values_Entered,B97+0,""),IF(Values_Entered,B97+1,"")) -> 75 | E98: 0 | F98: 0 | H98: =IF(Values_Entered,H97+1,"") -> 75 | K98: 0 | L98: 0 | M98: 0 | N98: 0 | O98: 0
B99: =IF(AND(F98>0,E98>1),IF(Values_Entered,B98+0,""),IF(Values_Entered,B98+1,"")) -> 76 | E99: 0 | F99: 0 | H99: =IF(Values_Entered,H98+1,"") -> 76 | K99: 0 | L99: 0 | M99: 0 | N99: 0 | O99: 0
B100: =IF(AND(F99>0,E99>1),IF(Values_Entered,B99+0,""),IF(Values_Entered,B99+1,"")) -> 77 | E100: 0 | F100: 0 | H100: =IF(Values_Entered,H99+1,"") -> 77 | K100: 0 | L100: 0 | M100: 0 | N100: 0 | O100: 0
B101: =IF(AND(F100>0,E100>1),IF(Values_Entered,B100+0,""),IF(Values_Entered,B100+1,"")) -> 78 | E101: 0 | F101: 0 | H101: =IF(Values_Entered,H100+1,"") -> 78 | K101: 0 | L101: 0 | M101: 0 | N101: 0 | O101: 0
B102: =IF(AND(F101>0,E101>1),IF(Values_Entered,B101+0,""),IF(Values_Entered,B101+1,"")) -> 79 | E102: 0 | F102: 0 | H102: =IF(Values_Entered,H101+1,"") -> 79 | K102: 0 | L102: 0 | M102: 0 | N102: 0 | O102: 0
B103: =IF(AND(F102>0,E102>1),IF(Values_Entered,B102+0,""),IF(Values_Entered,B102+1,"")) -> 80 | E103: 0 | F103: 0 | H103: =IF(Values_Entered,H102+1,"") -> 80 | K103: 0 | L103: 0 | M103: 0 | N103: 0 | O103: 0
B104: =IF(AND(F103>0,E103>1),IF(Values_Entered,B103+0,""),IF(Values_Entered,B103+1,"")) -> 81 | E104: 0 | F104: 0 | H104: =IF(Values_Entered,H103+1,"") -> 81 | K104: 0 | L104: 0 | M104: 0 | N104: 0 | O104: 0
B105: =IF(AND(F104>0,E104>1),IF(Values_Entered,B104+0,""),IF(Values_Entered,B104+1,"")) -> 82 | E105: 0 | F105: 0 | H105: =IF(Values_Entered,H104+1,"") -> 82 | K105: 0 | L105: 0 | M105: 0 | N105: 0 | O105: 0
B106: =IF(AND(F105>0,E105>1),IF(Values_Entered,B105+0,""),IF(Values_Entered,B105+1,"")) -> 83 | E106: 0 | F106: 0 | H106: =IF(Values_Entered,H105+1,"") -> 83 | K106: 0 | L106: 0 | M106: 0 | N106: 0 | O106: 0
B107: =IF(AND(F106>0,E106>1),IF(Values_Entered,B106+0,""),IF(Values_Entered,B106+1,"")) -> 84 | E107: 0 | F107: 0 | H107: =IF(Values_Entered,H106+1,"") -> 84 | K107: 0 | L107: 0 | M107: 0 | N107: 0 | O107: 0
B108: =IF(AND(F107>0,E107>1),IF(Values_Entered,B107+0,""),IF(Values_Entered,B107+1,"")) -> 85 | E108: 0 | F108: 0 | H108: =IF(Values_Entered,H107+1,"") -> 85 | K108: 0 | L108: 0 | M108: 0 | N108: 0 | O108: 0
B109: =IF(AND(F108>0,E108>1),IF(Values_Entered,B108+0,""),IF(Values_Entered,B108+1,"")) -> 86 | E109: 0 | F109: 0 | H109: =IF(Values_Entered,H108+1,"") -> 86 | K109: 0 | L109: 0 | M109: 0 | N109: 0 | O109: 0
B110: =IF(AND(F109>0,E109>1),IF(Values_Entered,B109+0,""),IF(Values_Entered,B109+1,"")) -> 87 | E110: 0 | F110: 0 | H110: =IF(Values_Entered,H109+1,"") -> 87 | K110: 0 | L110: 0 | M110: 0 | N110: 0 | O110: 0
B111: =IF(AND(F110>0,E110>1),IF(Values_Entered,B110+0,""),IF(Values_Entered,B110+1,"")) -> 88 | E111: 0 | F111: =IF(AND(F110>0,E110>0),(360/Pagos_Anuales)-F110,IF(OR(E111=0,E111="OK"),0,DAYS360(C110,E111))) -> 0 | H111: =IF(Values_Entered,H110+1,"") -> 88 | K111: 0 | L111: 0 | M111: 0 | N111: 0 | O111: 0
B112: =IF(AND(F111>0,E111>1),IF(Values_Entered,B111+0,""),IF(Values_Entered,B111+1,"")) -> 89 | E112: 0 | F112: 0 | H112: =IF(Values_Entered,H111+1,"") -> 89 | K112: 0 | L112: 0 | M112: 0 | N112: 0 | O112: 0
B113: =IF(AND(F112>0,E112>1),IF(Values_Entered,B112+0,""),IF(Values_Entered,B112+1,"")) -> 90 | E113: 0 | F113: 0 | H113: =IF(Values_Entered,H112+1,"") -> 90 | K113: 0 | L113: 0 | M113: 0 | N113: 0 | O113: 0
B114: =IF(AND(F113>0,E113>1),IF(Values_Entered,B113+0,""),IF(Values_Entered,B113+1,"")) -> 91 | E114: 0 | F114: 0 | H114: =IF(Values_Entered,H113+1,"") -> 91 | K114: 0 | L114: 0 | M114: 0 | N114: 0 | O114: 0
B115: =IF(AND(F114>0,E114>1),IF(Values_Entered,B114+0,""),IF(Values_Entered,B114+1,"")) -> 92 | E115: 0 | F115: 0 | H115: =IF(Values_Entered,H114+1,"") -> 92 | K115: 0 | L115: 0 | M115: 0 | N115: 0 | O115: 0
B116: =IF(AND(F115>0,E115>1),IF(Values_Entered,B115+0,""),IF(Values_Entered,B115+1,"")) -> 93 | E116: 0 | F116: 0 | H116: =IF(Values_Entered,H115+1,"") -> 93 | K116: 0 | L116: 0 | M116: 0 | N116: 0 | O116: 0
B117: =IF(AND(F116>0,E116>1),IF(Values_Entered,B116+0,""),IF(Values_Entered,B116+1,"")) -> 94 | E117: 0 | F117: 0 | H117: =IF(Values_Entered,H116+1,"") -> 94 | K117: 0 | L117: 0 | M117: 0 | N117: 0 | O117: 0
B118: =IF(AND(F117>0,E117>1),IF(Values_Entered,B117+0,""),IF(Values_Entered,B117+1,"")) -> 95 | E118: 0 | F118: 0 | H118: =IF(Values_Entered,H117+1,"") -> 95 | K118: 0 | L118: 0 | M118: 0 | N118: 0 | O118: 0
B119: =IF(AND(F118>0,E118>1),IF(Values_Entered,B118+0,""),IF(Values_Entered,B118+1,"")) -> 96 | E119: 0 | F119: 0 | H119: =IF(Values_Entered,H118+1,"") -> 96 | K119: 0 | L119: 0 | M119: 0 | N119: 0 | O119: 0
B120: =IF(AND(F119>0,E119>1),IF(Values_Entered,B119+0,""),IF(Values_Entered,B119+1,"")) -> 97 | E120: 0 | F120: 0 | H120: =IF(Values_Entered,H119+1,"") -> 97 | K120: 0 | L120: 0 | O120: =IFERROR(ROUND((K119*(ROUND(((1+$J$14/100)^((DAYS360(I119,I120,1))/360)-1)*(360/(DAYS360(I119,I120,1))),4)))/(360/DAYS360(I119,I120,1)),0),0) -> 0
B121: =IF(AND(F120>0,E120>1),IF(Values_Entered,B120+0,""),IF(Values_Entered,B120+1,"")) -> 98 | E121: 0 | F121: 0 | H121: =IF(Values_Entered,H120+1,"") -> 98 | K121: 0 | L121: 0 | O121: 0
B122: =IF(AND(F121>0,E121>1),IF(Values_Entered,B121+0,""),IF(Values_Entered,B121+1,"")) -> 99 | E122: 0 | F122: 0 | H122: =IF(Values_Entered,H121+1,"") -> 99 | K122: 0 | L122: 0 | O122: 0
B123: =IF(AND(F122>0,E122>1),IF(Values_Entered,B122+0,""),IF(Values_Entered,B122+1,"")) -> 100 | E123: 0 | F123: 0 | H123: =IF(Values_Entered,H122+1,"") -> 100 | K123: 0 | L123: 0 | O123: 0
B124: =IF(AND(F123>0,E123>1),IF(Values_Entered,B123+0,""),IF(Values_Entered,B123+1,"")) -> 101 | E124: 0 | F124: 0 | H124: =IF(Values_Entered,H123+1,"") -> 101 | K124: 0 | L124: 0 | O124: 0
B125: =IF(AND(F124>0,E124>1),IF(Values_Entered,B124+0,""),IF(Values_Entered,B124+1,"")) -> 102 | E125: 0 | F125: 0 | H125: =IF(Values_Entered,H124+1,"") -> 102 | K125: 0 | L125: 0 | O125: 0
B126: =IF(AND(F125>0,E125>1),IF(Values_Entered,B125+0,""),IF(Values_Entered,B125+1,"")) -> 103 | E126: 0 | F126: 0 | H126: =IF(Values_Entered,H125+1,"") -> 103 | K126: 0 | L126: 0 | O126: 0
B127: =IF(AND(F126>0,E126>1),IF(Values_Entered,B126+0,""),IF(Values_Entered,B126+1,"")) -> 104 | E127: 0 | F127: 0 | H127: =IF(Values_Entered,H126+1,"") -> 104 | K127: 0 | L127: 0 | O127: 0
B128: =IF(AND(F127>0,E127>1),IF(Values_Entered,B127+0,""),IF(Values_Entered,B127+1,"")) -> 105 | E128: 0 | F128: 0 | H128: =IF(Values_Entered,H127+1,"") -> 105 | K128: 0 | L128: 0 | O128: 0
B129: =IF(AND(F128>0,E128>1),IF(Values_Entered,B128+0,""),IF(Values_Entered,B128+1,"")) -> 106 | E129: 0 | F129: 0 | H129: =IF(Values_Entered,H128+1,"") -> 106 | K129: 0 | L129: 0 | O129: 0
B130: =IF(AND(F129>0,E129>1),IF(Values_Entered,B129+0,""),IF(Values_Entered,B129+1,"")) -> 107 | E130: 0 | F130: 0 | H130: =IF(Values_Entered,H129+1,"") -> 107 | K130: 0 | L130: 0 | O130: 0
B131: =IF(AND(F130>0,E130>1),IF(Values_Entered,B130+0,""),IF(Values_Entered,B130+1,"")) -> 108 | E131: 0 | F131: 0 | H131: =IF(Values_Entered,H130+1,"") -> 108 | K131: 0 | L131: 0 | O131: 0
B132: =IF(AND(F131>0,E131>1),IF(Values_Entered,B131+0,""),IF(Values_Entered,B131+1,"")) -> 109 | E132: 0 | F132: 0 | H132: =IF(Values_Entered,H131+1,"") -> 109 | K132: 0 | L132: 0 | O132: 0
B133: =IF(AND(F132>0,E132>1),IF(Values_Entered,B132+0,""),IF(Values_Entered,B132+1,"")) -> 110 | E133: 0 | F133: 0 | H133: =IF(Values_Entered,H132+1,"") -> 110 | K133: 0 | L133: 0 | O133: 0
B134: =IF(AND(F133>0,E133>1),IF(Values_Entered,B133+0,""),IF(Values_Entered,B133+1,"")) -> 111 | E134: 0 | F134: 0 | H134: =IF(Values_Entered,H133+1,"") -> 111 | K134: 0 | L134: 0 | O134: 0
B135: =IF(AND(F134>0,E134>1),IF(Values_Entered,B134+0,""),IF(Values_Entered,B134+1,"")) -> 112 | E135: 0 | F135: 0 | H135: =IF(Values_Entered,H134+1,"") -> 112 | K135: 0 | L135: 0 | O135: 0
B136: =IF(AND(F135>0,E135>1),IF(Values_Entered,B135+0,""),IF(Values_Entered,B135+1,"")) -> 113 | E136: 0 | F136: 0 | H136: =IF(Values_Entered,H135+1,"") -> 113 | K136: 0 | L136: 0 | O136: 0
B137: =IF(AND(F136>0,E136>1),IF(Values_Entered,B136+0,""),IF(Values_Entered,B136+1,"")) -> 114 | E137: 0 | F137: 0 | H137: =IF(Values_Entered,H136+1,"") -> 114 | K137: 0 | L137: 0 | O137: 0
B138: =IF(AND(F137>0,E137>1),IF(Values_Entered,B137+0,""),IF(Values_Entered,B137+1,"")) -> 115 | E138: 0 | F138: 0 | H138: =IF(Values_Entered,H137+1,"") -> 115 | K138: 0 | L138: 0 | O138: 0
B139: =IF(AND(F138>0,E138>1),IF(Values_Entered,B138+0,""),IF(Values_Entered,B138+1,"")) -> 116 | E139: 0 | F139: 0 | H139: =IF(Values_Entered,H138+1,"") -> 116 | K139: 0 | L139: 0 | O139: 0
B140: =IF(AND(F139>0,E139>1),IF(Values_Entered,B139+0,""),IF(Values_Entered,B139+1,"")) -> 117 | E140: 0 | F140: 0 | H140: =IF(Values_Entered,H139+1,"") -> 117 | K140: 0 | L140: 0 | O140: 0
B141: =IF(AND(F140>0,E140>1),IF(Values_Entered,B140+0,""),IF(Values_Entered,B140+1,"")) -> 118 | E141: 0 | F141: 0 | H141: =IF(Values_Entered,H140+1,"") -> 118 | K141: 0 | L141: 0 | O141: 0
B142: =IF(AND(F141>0,E141>1),IF(Values_Entered,B141+0,""),IF(Values_Entered,B141+1,"")) -> 119 | E142: 0 | F142: 0 | H142: =IF(Values_Entered,H141+1,"") -> 119 | K142: 0 | L142: 0 | O142: 0
B143: =IF(AND(F142>0,E142>1),IF(Values_Entered,B142+0,""),IF(Values_Entered,B142+1,"")) -> 120 | E143: 0 | F143: 0 | H143: =IF(Values_Entered,H142+1,"") -> 120 | K143: 0 | L143: 0 | O143: 0
B144: =IF(AND(F143>0,E143>1),IF(Values_Entered,B143+0,""),IF(Values_Entered,B143+1,"")) -> 121 | E144: 0 | F144: 0 | H144: =IF(Values_Entered,H143+1,"") -> 121 | K144: 0 | L144: 0 | O144: 0
B145: =IF(AND(F144>0,E144>1),IF(Values_Entered,B144+0,""),IF(Values_Entered,B144+1,"")) -> 122 | E145: 0 | F145: 0 | H145: =IF(Values_Entered,H144+1,"") -> 122 | K145: 0 | L145: 0 | O145: 0
B146: =IF(AND(F145>0,E145>1),IF(Values_Entered,B145+0,""),IF(Values_Entered,B145+1,"")) -> 123 | E146: 0 | F146: =IF(AND(F145>0,E145>0),(360/Pagos_Anuales)-F145,IF(OR(E146=0,E146="OK"),0,DAYS360(C145,E146))) -> 0 | H146: =IF(Values_Entered,H145+1,"") -> 123 | K146: =+K145-J146 -> 0 | L146: =IFERROR(ROUND((K145*(ROUND(((1+$J$13/100)^((DAYS360(I145,I146,1))/360)-1)*(360/(DAYS360(I145,I146,1))),4)))/(360/DAYS360(I145,I146,1)),0),0) -> 0 | O146: 0
B147: =IF(AND(F146>0,E146>1),IF(Values_Entered,B146+0,""),IF(Values_Entered,B146+1,"")) -> 124 | E147: =+IF($D$15>C147,"OK",0) -> 0 | F147: 0 | H147: =IF(Values_Entered,H146+1,"") -> 124 | K147: 0 | L147: 0 | O147: 0
B148: =IF(AND(F147>0,E147>1),IF(Values_Entered,B147+0,""),IF(Values_Entered,B147+1,"")) -> 125 | E148: 0 | F148: 0 | H148: =IF(Values_Entered,H147+1,"") -> 125 | K148: 0 | L148: 0 | O148: 0
B149: =IF(AND(F148>0,E148>1),IF(Values_Entered,B148+0,""),IF(Values_Entered,B148+1,"")) -> 126 | E149: 0 | F149: 0 | H149: =IF(Values_Entered,H148+1,"") -> 126 | K149: 0 | L149: 0 | O149: 0
B150: =IF(AND(F149>0,E149>1),IF(Values_Entered,B149+0,""),IF(Values_Entered,B149+1,"")) -> 127 | E150: 0 | F150: 0 | H150: =IF(Values_Entered,H149+1,"") -> 127 | K150: 0 | L150: 0 | O150: 0
B151: =IF(AND(F150>0,E150>1),IF(Values_Entered,B150+0,""),IF(Values_Entered,B150+1,"")) -> 128 | E151: 0 | F151: 0 | H151: =IF(Values_Entered,H150+1,"") -> 128 | K151: 0 | L151: 0 | O151: 0
B152: =IF(AND(F151>0,E151>1),IF(Values_Entered,B151+0,""),IF(Values_Entered,B151+1,"")) -> 129 | E152: 0 | F152: 0 | H152: =IF(Values_Entered,H151+1,"") -> 129 | K152: 0 | L152: 0 | O152: 0
B153: =IF(AND(F152>0,E152>1),IF(Values_Entered,B152+0,""),IF(Values_Entered,B152+1,"")) -> 130 | E153: 0 | F153: 0 | H153: =IF(Values_Entered,H152+1,"") -> 130 | K153: 0 | L153: 0 | O153: 0
B154: =IF(AND(F153>0,E153>1),IF(Values_Entered,B153+0,""),IF(Values_Entered,B153+1,"")) -> 131 | E154: 0 | F154: 0 | H154: =IF(Values_Entered,H153+1,"") -> 131 | K154: 0 | L154: 0 | O154: 0
B155: =IF(AND(F154>0,E154>1),IF(Values_Entered,B154+0,""),IF(Values_Entered,B154+1,"")) -> 132 | E155: 0 | F155: 0 | H155: =IF(Values_Entered,H154+1,"") -> 132 | K155: 0 | L155: 0 | O155: 0
B156: =IF(AND(F155>0,E155>1),IF(Values_Entered,B155+0,""),IF(Values_Entered,B155+1,"")) -> 133 | E156: 0 | F156: 0 | H156: =IF(Values_Entered,H155+1,"") -> 133 | K156: 0 | L156: 0 | O156: 0
B157: =IF(AND(F156>0,E156>1),IF(Values_Entered,B156+0,""),IF(Values_Entered,B156+1,"")) -> 134 | E157: 0 | F157: 0 | H157: =IF(Values_Entered,H156+1,"") -> 134 | K157: 0 | L157: 0 | O157: 0
B158: =IF(AND(F157>0,E157>1),IF(Values_Entered,B157+0,""),IF(Values_Entered,B157+1,"")) -> 135 | E158: 0 | F158: 0 | H158: =IF(Values_Entered,H157+1,"") -> 135 | K158: 0 | L158: 0 | O158: 0
B159: =IF(AND(F158>0,E158>1),IF(Values_Entered,B158+0,""),IF(Values_Entered,B158+1,"")) -> 136 | E159: 0 | F159: 0 | H159: =IF(Values_Entered,H158+1,"") -> 136 | K159: 0 | L159: 0 | O159: 0
B160: =IF(AND(F159>0,E159>1),IF(Values_Entered,B159+0,""),IF(Values_Entered,B159+1,"")) -> 137 | E160: 0 | F160: 0 | H160: =IF(Values_Entered,H159+1,"") -> 137 | K160: 0 | L160: 0 | O160: 0
B161: =IF(AND(F160>0,E160>1),IF(Values_Entered,B160+0,""),IF(Values_Entered,B160+1,"")) -> 138 | E161: 0 | F161: 0 | H161: =IF(Values_Entered,H160+1,"") -> 138 | K161: 0 | L161: 0 | O161: 0
B162: =IF(AND(F161>0,E161>1),IF(Values_Entered,B161+0,""),IF(Values_Entered,B161+1,"")) -> 139 | E162: 0 | F162: 0 | H162: =IF(Values_Entered,H161+1,"") -> 139 | K162: 0 | L162: 0 | O162: 0
B163: =IF(AND(F162>0,E162>1),IF(Values_Entered,B162+0,""),IF(Values_Entered,B162+1,"")) -> 140 | E163: 0 | F163: 0 | H163: =IF(Values_Entered,H162+1,"") -> 140 | K163: 0 | L163: 0 | O163: 0
B164: =IF(AND(F163>0,E163>1),IF(Values_Entered,B163+0,""),IF(Values_Entered,B163+1,"")) -> 141 | E164: 0 | F164: 0 | H164: =IF(Values_Entered,H163+1,"") -> 141 | K164: 0 | L164: 0 | O164: 0
B165: =IF(AND(F164>0,E164>1),IF(Values_Entered,B164+0,""),IF(Values_Entered,B164+1,"")) -> 142 | E165: 0 | F165: 0 | H165: =IF(Values_Entered,H164+1,"") -> 142 | K165: 0 | L165: 0 | O165: =IFERROR(ROUND((K164*(ROUND(((1+$J$14/100)^((DAYS360(I164,I165,1))/360)-1)*(360/(DAYS360(I164,I165,1))),4)))/(360/DAYS360(I164,I165,1)),0),0) -> 0
B166: =IF(AND(F165>0,E165>1),IF(Values_Entered,B165+0,""),IF(Values_Entered,B165+1,"")) -> 143 | E166: 0 | F166: 0 | H166: =IF(Values_Entered,H165+1,"") -> 143 | K166: 0 | L166: 0 | O166: 0
B167: =IF(AND(F166>0,E166>1),IF(Values_Entered,B166+0,""),IF(Values_Entered,B166+1,"")) -> 144 | E167: 0 | F167: 0 | H167: =IF(Values_Entered,H166+1,"") -> 144 | K167: 0 | L167: 0 | O167: 0
B168: =IF(AND(F167>0,E167>1),IF(Values_Entered,B167+0,""),IF(Values_Entered,B167+1,"")) -> 145 | E168: 0 | F168: 0 | H168: =IF(Values_Entered,H167+1,"") -> 145 | K168: 0 | L168: 0 | O168: 0
B169: =IF(AND(F168>0,E168>1),IF(Values_Entered,B168+0,""),IF(Values_Entered,B168+1,"")) -> 146 | E169: 0 | F169: 0 | H169: =IF(Values_Entered,H168+1,"") -> 146 | K169: 0 | L169: 0 | O169: 0
B170: =IF(AND(F169>0,E169>1),IF(Values_Entered,B169+0,""),IF(Values_Entered,B169+1,"")) -> 147 | E170: 0 | F170: 0 | H170: =IF(Values_Entered,H169+1,"") -> 147 | K170: 0 | L170: 0 | O170: 0
B171: =IF(AND(F170>0,E170>1),IF(Values_Entered,B170+0,""),IF(Values_Entered,B170+1,"")) -> 148 | E171: 0 | F171: 0 | H171: =IF(Values_Entered,H170+1,"") -> 148 | K171: 0 | L171: 0 | O171: 0
B172: =IF(AND(F171>0,E171>1),IF(Values_Entered,B171+0,""),IF(Values_Entered,B171+1,"")) -> 149 | E172: 0 | F172: 0 | H172: =IF(Values_Entered,H171+1,"") -> 149 | K172: 0 | L172: 0 | O172: 0
B173: =IF(AND(F172>0,E172>1),IF(Values_Entered,B172+0,""),IF(Values_Entered,B172+1,"")) -> 150 | E173: 0 | F173: 0 | H173: =IF(Values_Entered,H172+1,"") -> 150 | K173: 0 | L173: 0 | O173: 0
B174: =IF(AND(F173>0,E173>1),IF(Values_Entered,B173+0,""),IF(Values_Entered,B173+1,"")) -> 151 | E174: 0 | F174: 0 | H174: =IF(Values_Entered,H173+1,"") -> 151 | K174: 0 | L174: 0 | O174: 0
B175: =IF(AND(F174>0,E174>1),IF(Values_Entered,B174+0,""),IF(Values_Entered,B174+1,"")) -> 152 | E175: 0 | F175: 0 | H175: =IF(Values_Entered,H174+1,"") -> 152 | K175: 0 | L175: 0 | O175: 0
B176: =IF(AND(F175>0,E175>1),IF(Values_Entered,B175+0,""),IF(Values_Entered,B175+1,"")) -> 153 | E176: 0 | F176: 0 | H176: =IF(Values_Entered,H175+1,"") -> 153 | K176: 0 | L176: 0 | O176: 0
B177: =IF(AND(F176>0,E176>1),IF(Values_Entered,B176+0,""),IF(Values_Entered,B176+1,"")) -> 154 | E177: 0 | F177: 0 | H177: =IF(Values_Entered,H176+1,"") -> 154 | K177: 0 | L177: 0 | O177: 0
B178: =IF(AND(F177>0,E177>1),IF(Values_Entered,B177+0,""),IF(Values_Entered,B177+1,"")) -> 155 | E178: 0 | F178: 0 | H178: =IF(Values_Entered,H177+1,"") -> 155 | K178: 0 | L178: 0 | O178: 0
B179: =IF(AND(F178>0,E178>1),IF(Values_Entered,B178+0,""),IF(Values_Entered,B178+1,"")) -> 156 | E179: 0 | F179: 0 | H179: =IF(Values_Entered,H178+1,"") -> 156 | K179: 0 | L179: 0 | O179: 0
B180: =IF(AND(F179>0,E179>1),IF(Values_Entered,B179+0,""),IF(Values_Entered,B179+1,"")) -> 157 | E180: 0 | F180: 0 | H180: =IF(Values_Entered,H179+1,"") -> 157 | K180: 0 | L180: 0 | O180: 0
B181: =IF(AND(F180>0,E180>1),IF(Values_Entered,B180+0,""),IF(Values_Entered,B180+1,"")) -> 158 | E181: 0 | F181: 0 | H181: =IF(Values_Entered,H180+1,"") -> 158 | K181: 0 | L181: 0 | O181: 0
B182: =IF(AND(F181>0,E181>1),IF(Values_Entered,B181+0,""),IF(Values_Entered,B181+1,"")) -> 159 | E182: 0 | F182: 0 | H182: =IF(Values_Entered,H181+1,"") -> 159 | K182: 0 | L182: 0 | O182: 0
B183: =IF(AND(F182>0,E182>1),IF(Values_Entered,B182+0,""),IF(Values_Entered,B182+1,"")) -> 160 | E183: 0 | F183: 0 | H183: =IF(Values_Entered,H182+1,"") -> 160 | K183: 0 | L183: 0 | O183: 0
B184: =IF(AND(F183>0,E183>1),IF(Values_Entered,B183+0,""),IF(Values_Entered,B183+1,"")) -> 161 | E184: 0 | F184: 0 | H184: =IF(Values_Entered,H183+1,"") -> 161 | K184: 0 | L184: 0 | O184: 0
B185: =IF(AND(F184>0,E184>1),IF(Values_Entered,B184+0,""),IF(Values_Entered,B184+1,"")) -> 162 | E185: 0 | F185: 0 | H185: =IF(Values_Entered,H184+1,"") -> 162 | K185: 0 | L185: 0 | O185: 0
B186: =IF(AND(F185>0,E185>1),IF(Values_Entered,B185+0,""),IF(Values_Entered,B185+1,"")) -> 163 | E186: 0 | F186: 0 | H186: =IF(Values_Entered,H185+1,"") -> 163 | K186: 0 | L186: 0 | O186: 0
B187: =IF(AND(F186>0,E186>1),IF(Values_Entered,B186+0,""),IF(Values_Entered,B186+1,"")) -> 164 | E187: 0 | F187: 0 | H187: =IF(Values_Entered,H186+1,"") -> 164 | K187: 0 | L187: 0 | O187: 0
B188: =IF(AND(F187>0,E187>1),IF(Values_Entered,B187+0,""),IF(Values_Entered,B187+1,"")) -> 165 | E188: 0 | F188: 0 | H188: =IF(Values_Entered,H187+1,"") -> 165 | K188: 0 | L188: 0 | O188: 0
B189: =IF(AND(F188>0,E188>1),IF(Values_Entered,B188+0,""),IF(Values_Entered,B188+1,"")) -> 166 | E189: 0 | F189: 0 | H189: =IF(Values_Entered,H188+1,"") -> 166 | K189: 0 | L189: 0 | O189: 0
B190: =IF(AND(F189>0,E189>1),IF(Values_Entered,B189+0,""),IF(Values_Entered,B189+1,"")) -> 167 | E190: 0 | F190: 0 | H190: =IF(Values_Entered,H189+1,"") -> 167 | K190: 0 | L190: 0 | O190: 0
B191: =IF(AND(F190>0,E190>1),IF(Values_Entered,B190+0,""),IF(Values_Entered,B190+1,"")) -> 168 | E191: 0 | F191: 0 | H191: =IF(Values_Entered,H190+1,"") -> 168 | K191: 0 | L191: 0 | O191: 0
B192: =IF(AND(F191>0,E191>1),IF(Values_Entered,B191+0,""),IF(Values_Entered,B191+1,"")) -> 169 | E192: 0 | F192: 0 | H192: =IF(Values_Entered,H191+1,"") -> 169 | K192: 0 | L192: 0 | O192: 0
B193: =IF(AND(F192>0,E192>1),IF(Values_Entered,B192+0,""),IF(Values_Entered,B192+1,"")) -> 170 | E193: 0 | F193: 0 | H193: =IF(Values_Entered,H192+1,"") -> 170 | K193: 0 | L193: 0 | O193: 0
B194: =IF(AND(F193>0,E193>1),IF(Values_Entered,B193+0,""),IF(Values_Entered,B193+1,"")) -> 171 | E194: 0 | F194: 0 | H194: =IF(Values_Entered,H193+1,"") -> 171 | K194: 0 | L194: 0 | O194: 0
B195: =IF(AND(F194>0,E194>1),IF(Values_Entered,B194+0,""),IF(Values_Entered,B194+1,"")) -> 172 | E195: 0 | F195: 0 | H195: =IF(Values_Entered,H194+1,"") -> 172 | K195: 0 | L195: 0 | O195: 0
B196: =IF(AND(F195>0,E195>1),IF(Values_Entered,B195+0,""),IF(Values_Entered,B195+1,"")) -> 173 | E196: 0 | F196: 0 | H196: =IF(Values_Entered,H195+1,"") -> 173 | K196: 0 | L196: 0 | O196: 0
B197: =IF(AND(F196>0,E196>1),IF(Values_Entered,B196+0,""),IF(Values_Entered,B196+1,"")) -> 174 | E197: 0 | F197: 0 | H197: =IF(Values_Entered,H196+1,"") -> 174 | K197: 0 | L197: 0 | O197: 0
B198: =IF(AND(F197>0,E197>1),IF(Values_Entered,B197+0,""),IF(Values_Entered,B197+1,"")) -> 175 | E198: 0 | F198: 0 | H198: =IF(Values_Entered,H197+1,"") -> 175 | K198: 0 | L198: 0 | O198: 0
B199: =IF(AND(F198>0,E198>1),IF(Values_Entered,B198+0,""),IF(Values_Entered,B198+1,"")) -> 176 | E199: 0 | F199: 0 | H199: =IF(Values_Entered,H198+1,"") -> 176 | K199: 0 | L199: 0 | O199: 0
B200: =IF(AND(F199>0,E199>1),IF(Values_Entered,B199+0,""),IF(Values_Entered,B199+1,"")) -> 177 | E200: 0 | F200: 0 | H200: =IF(Values_Entered,H199+1,"") -> 177 | K200: 0 | L200: 0 | O200: 0
B201: =IF(AND(F200>0,E200>1),IF(Values_Entered,B200+0,""),IF(Values_Entered,B200+1,"")) -> 178 | E201: 0 | F201: 0 | H201: =IF(Values_Entered,H200+1,"") -> 178 | K201: 0 | L201: 0 | O201: 0
B202: =IF(AND(F201>0,E201>1),IF(Values_Entered,B201+0,""),IF(Values_Entered,B201+1,"")) -> 179 | E202: 0 | F202: 0 | H202: =IF(Values_Entered,H201+1,"") -> 179 | K202: 0 | L202: 0 | O202: 0
B203: =IF(AND(F202>0,E202>1),IF(Values_Entered,B202+0,""),IF(Values_Entered,B202+1,"")) -> 180 | E203: 0 | F203: 0 | H203: =IF(Values_Entered,H202+1,"") -> 180 | K203: 0 | L203: 0 | O203: 0
... 176 more rows

Sheet INFORMACION REQUERIDA
A2: Información requerida para el uso del simulador:
A4: Deben definir e incluir los siguientes datos:
A6: 1. Tipo de tasa DTF o IBR
A7: 2. Determinar si es Reestructuración o Consolidación
A8: 3. Seleccionar el programa de credito al cual que corresponde la obligación
A9: 4. Nombre Beneficiario
A10: 5. Nit o Cedula del Beneficiario
A11: 6. Numero de operación
A12: 7. Saldo
A13: 8. Numero de cuotas a proyectar
A14: 9. Fecha de inicio de la consolidación corresponde a la fecha del día de la presentación y en cuanto a la reestructuración es la fecha del ultimo vencimiento o novedad de a operación anterior.
A15: 10. Se debe armar o proyectar el plan de pagos
A16: 11. Valor enviado mensualmente atraves de intercambio en AGROS con el subsidio disponible
A17: 12. Ejecutar la opción de Excel Pestaña "Datos" opción Análisis de Hipótesis- BUSCAR OBJETIVO, donde se debe diligenciar los siguientes datos:
A29: 12. El simulador le indicara si es Viable o No Viable.
A30: 13. Item BORRAR iniciar otra simulación.
A31: 14- Debe diligenciar el valor del subsidio disponible, el cual es reportado por FINAGRO los primeros 10 dias de cada mes por el aplicativo AGROS por ( Intercambio - Consulta - Tipo de Documento "Aprobacion y Proyección de subsidio")

Sheet Hoja2 (hidden)
B1: Programa | C1: Int. Financiero | D1: Finagro | E1: Tasa int | F1: Tasa IBR | G1: CONSOLIDACION | H1: DTF
B2: AIS 2007 PEQUEÑO PRODUCTOR | C2: 6 | D2: 0 | E2: -2 | G2: REESTRUCTURACION | H2: IBR
B3: AIS 2007 MEDIANO PRODUCTOR | C3: 6 | D3: 3 | E3: -2
B4: AIS 2007 GRAN PRODUCTOR | C4: 6 | D4: 3 | E4: -2
B5: AIS 2007 PEQUEÑO PRODUCTOR CAPITALIZABLE | C5: 6 | D5: 0 | E5: -2
B6: AIS 2007 MEDIANO PRODUCTOR CAPITALIZABLE | C6: 6 | D6: 3 | E6: -2
B7: AIS 2007 GRAN PRODUCTOR CAPITALIZABLE | C7: 6 | D7: 3 | E7: -2
B8: AIS 2008 PEQUEÑO PRODUCTOR | C8: 8 | D8: 0 | E8: -2
B9: AIS 2008 MEDIANO PRODUCTOR | C9: 6 | D9: 3 | E9: -2
B10: AIS 2008 GRAN PRODUCTOR | C10: 6 | D10: 3 | E10: -2
B11: AIS 2008 PEQUEÑO PRODUCTOR_Agropecuaria | C11: 8 | D11: 0 | E11: -2
B12: AIS 2008 MEDIANO PRODUCTOR_Agropecuaria | C12: 7 | D12: 0 | E12: -2
B13: AIS 2008 GRAN PRODUCTOR_Agropecuaria | C13: 6 | D13: 0 | E13: -2
B14: AIS 2008 PEQUEÑO PRODUCTOR_Fag Especial | C14: 8 | D14: 0 | E14: -2
B15: AIS 2008 PEQUEÑO PRODUCTOR_Capitalizable | C15: 8 | D15: 0 | E15: -2
B16: AIS 2008 MEDIANO PRODUCTOR_Agropecuaria_Capitalizable | C16: 7 | D16: 0 | E16: -2
B17: AIS 2008 GRAN PRODUCTOR_Agropecuaria_Capitalizable | C17: 6 | D17: 0 | E17: -2
B18: AIS 2009 PEQUEÑO PRODUCTOR | C18: 8 | D18: 0 | E18: -2
B19: AIS 2009 MEDIANO PRODUCTOR | C19: 7 | D19: 3 | E19: -2
B20: AIS 2009 GRAN PRODUCTOR | C20: 6 | D20: 3 | E20: -2
B21: AIS 2009 GRAN PRODUCTOR_Capitalizable | C21: 6 | D21: 3 | E21: -2
B22: AIS 2009 AGREMIACIONES PEQUEÑO PRODUCTOR_Capitalizable | C22: 8 | D22: 0 | E22: -2
B23: AIS 2009 ASOCIACIONES PEQUEÑO PRODUCTOR_Capitalizable | C23: 8 | D23: 0 | E23: -2
B24: AIS 2010 PEQUEÑO PRODUCTOR | C24: 6 | D24: 0 | E24: 0
B25: AIS 2010 MEDIANO PRODUCTOR | C25: 6 | D25: 0 | E25: 2
B26: AIS 2010 GRAN PRODUCTOR | C26: 5 | D26: 0 | E26: 2
B27: AIS 2011 PEQUEÑO PRODUCTOR | C27: 5 | D27: 0 | E27: 1
B28: AIS 2011 MEDIANO PRODUCTOR | C28: 6 | D28: 0 | E28: 2
B29: AIS 2012 PEQUEÑO PRODUCTOR | C29: 5 | D29: 0 | E29: 1
B30: AIS 2012 MEDIANO PRODUCTOR | C30: 6 | D30: 0 | E30: 2
B31: AIS 2013 PEQUEÑO PRODUCTOR | C31: 5 | D31: 0 | E31: 1
B32: AIS 2013 MEDIANO PRODUCTOR | C32: 6 | D32: 0 | E32: 2
B33: AIS 2014 PEQUEÑO PRODUCTOR | C33: 5 | D33: 0 | E33: 1
B34: AIS 2014 MEDIANO PRODUCTOR | C34: 6 | D34: 0 | E34: 2
B35: AIS 2015 PEQUEÑO PRODUCTOR | C35: 5 | D35: 0 | E35: 1
B36: AIS 2015 MEDIANO PRODUCTOR | C36: 6 | D36: 0 | E36: 2
B37: OLA INV 2010-2011 PEQUEÑO PRODUCTOR | C37: 6 | D37: 0 | E37: -1
B38: OLA INV 2010-2011 MEDIANO PRODUCTOR | C38: 7 | D38: 0 | E38: 0
B39: OLA INV 2010-2011 GRAN PRODUCTOR | C39: 6 | D39: 0 | E39: 1
B40: OLA INV 2010-2011 PEQUEÑO PRODUCTOR_Fag Ordinario | C40: 6 | D40: 0 | E40: -1
B41: OLA INV 2010-2011 MEDIANO PRODUCTOR_Fag Ordinario | C41: 7 | D41: 0 | E41: 0
B42: EXPORT 2008 PEQUEÑO PRODUCTOR | C42: 3.5 | D42: 1 | E42: 0
B43: EXPORT 2008 MEDIANO PRODUCTOR | C43: 3.5 | D43: 1 | E43: 0
B44: EXPORT 2008 GRAN PRODUCTOR | C44: 3.5 | D44: 1 | E44: 0
B45: EXPORT 2008 PEQUEÑO PRODUCTOR_Agropecuaria | C45: 4.5 | D45: 0 | E45: 0
B46: EXPORT 2008 MEDIANO PRODUCTOR_Agropecuaria | C46: 4.5 | D46: 0 | E46: 0
B47: EXPORT 2008 GRAN PRODUCTOR_Agropecuaria | C47: 4.5 | D47: 0 | E47: 0
B48: EXPORT 2008 GRAN PRODUCTOR_Capitalizable | C48: 6 | D48: 3 | E48: 0
B49: LEC COLOMBIA SIEMBRA 2016 JOVEN RURAL | C49: 7 | D49: 0 | E49: 0
B50: LEC COLOMBIA SIEMBRA 2016 PEQUEÑO PRODUCTOR | C50: 6 | D50: 0 | E50: 0
B51: LEC COLOMBIA SIEMBRA 2016 MEDIANO PRODUCTOR | C51: 6 | D51: 0 | E51: 1
B52: LEC COLOMBIA SIEMBRA 2016 GRAN PRODUCTOR | C52: 5 | D52: 0 | E52: 2
B53: LEC COLOMBIA SIEMBRA 2016 ESQUEMA ASOC. | C53: 5 | D53: 0 | E53: 0
B54: LEC COLOMBIA SIEMBRA 2016 ESQUEMA DE INTEGR. | C54: 6 | D54: 0 | E54: 0
B55: LEC RENOVACIÓN CAFE POR ZOCA 2016 PEQUEÑO PRODUCTOR | C55: 5 | D55: 0 | E55: 1
B56: LEC RENOVACIÓN CAFE POR ZOCA 2016 | C56: 5 | D56: 0 | E56: 2
B57: LEC GENERAL 2016 JOVEN RURAL | C57: 6 | D57: 0 | E57: 1
B58: LEC GENERAL 2016 PEQUEÑO PRODUCTOR | C58: 5 | D58: 0 | E58: 1
B59: LEC GENERAL 2016 MEDIANO PRODUCTOR | C59: 5 | D59: 0 | E59: 2
B60: LEC GENERAL 2016 ESQUEMA ASOC. | C60: 4 | D60: 0 | E60: 1
B61: LEC GENERAL 2016 ESQUEMA DE INTEGR. | C61: 5 | D61: 0 | E61: 1
B62: LEC RETENCION VIENTRES 2016 PEQUEÑO PRODUCTOR | C62: 5 | D62: 0 | E62: 1
B63: LEC RETENCION VIENTRES 2016 MEDIANO PRODUCTOR | C63: 5 | D63: 0 | E63: 2
B64: LEC RETENCION VIENTRES 2016 GRAN PRODUCTOR | C64: 5 | D64: 0 | E64: 2
B65: LEC COLOMBIA SIEMBRA 2017 DE 1 A 36 MESES JOVEN RURAL | C65: 7 | D65: 0 | E65: 0
B66: LEC COLOMBIA SIEMBRA 2017 DE 1 A 36 MESES PEQUEÑO PRODUCTOR | C66: 6 | D66: 0 | E66: 0
B67: LEC COLOMBIA SIEMBRA 2017 DE 1 A 36 MESES MEDIANO PRODUCTOR | C67: 6 | D67: 0 | E67: 1
B68: LEC COLOMBIA SIEMBRA 2017 DE 1 A 36 MESES GRAN PRODUCTOR | C68: 5 | D68: 0 | E68: 2
B69: LEC COLOMBIA SIEMBRA 2017 DE 1 A 36 MESES ESQUEMA ASOC. | C69: 5 | D69: 0 | E69: 0
B70: LEC COLOMBIA SIEMBRA 2017 DE 1 A 36 MESES ESQUEMA DE INTEGR. | C70: 6 | D70: 0 | E70: 0
B71: LEC COLOMBIA SIEMBRA 2017 DE 37 A 60 MESES JOVEN RURAL | C71: 5 | D71: 0 | E71: 1
B72: LEC COLOMBIA SIEMBRA 2017 DE 37 A 60 MESES PEQUEÑO PRODUCTOR | C72: 5 | D72: 0 | E72: 1
B73: LEC COLOMBIA SIEMBRA 2017 DE 37 A 60 MESES MEDIANO PRODUCTOR | C73: 4 | D73: 0 | E73: 3
B74: LEC COLOMBIA SIEMBRA 2017 DE 37 A 60 MESES GRAN PRODUCTOR | C74: 3 | D74: 0 | E74: 4
B75: LEC COLOMBIA SIEMBRA 2017 DE 37 A 60 MESES ESQUEMA ASOC. | C75: 4 | D75: 0 | E75: 1
B76: LEC COLOMBIA SIEMBRA 2017 DE 37 A 60 MESES ESQUEMA DE INTEGR. | C76: 4 | D76: 0 | E76: 2
B77: LEC GENERAL 2017 DE 1 A 36 MESES JOVEN RURAL | C77: 6 | D77: 0 | E77: 1
B78: LEC GENERAL 2017 DE 1 A 36 MESES PEQUEÑO PRODUCTOR | C78: 5 | D78: 0 | E78: 1
B79: LEC GENERAL 2017 DE 1 A 36 MESES MEDIANO PRODUCTOR | C79: 5 | D79: 0 | E79: 2
B80: LEC GENERAL 2017 DE 1 A 36 MESES ESQUEMA ASOC. | C80: 4 | D80: 0 | E80: 1
B81: LEC GENERAL 2017 DE 1 A 36 MESES ESQUEMA DE INTEGR. | C81: 5 | D81: 0 | E81: 1
B82: LEC GENERAL 2017 DE 37 A 60 MESES JOVEN RURAL | C82: 5 | D82: 0 | E82: 2
B83: LEC GENERAL 2017 DE 37 A 60 MESES PEQUEÑO PRODUCTOR | C83: 4 | D83: 0 | E83: 2
B84: LEC GENERAL 2017 DE 37 A 60 MESES MEDIANO PRODUCTOR | C84: 3 | D84: 0 | E84: 4
B85: LEC GENERAL 2017 DE 37 A 60 MESES ESQUEMA ASOC. | C85: 3 | D85: 0 | E85: 2
B86: LEC GENERAL 2017 DE 37 A 60 MESES ESQUEMA DE INTEGR. | C86: 3 | D86: 0 | E86: 3
B87: LEC RENOVACIÓN CAFE POR ZOCA 2017 DE 1 A 36 MESES JOVEN RURAL | C87: 6 | D87: 0 | E87: 1
B88: LEC RENOVACIÓN CAFE POR ZOCA 2017 DE 1 A 36 MESES PEQUEÑO PRODUCTOR | C88: 5 | D88: 0 | E88: 1
B89: LEC RENOVACIÓN CAFE POR ZOCA 2017 DE 1 A 36 MESES MEDIANO PRODUCTOR | C89: 5 | D89: 0 | E89: 2
B90: LEC RENOVACIÓN CAFE POR ZOCA 2017 DE 1 A 36 MESES ESQUEMA ASOC. | C90: 4 | D90: 0 | E90: 1
B91: LEC RENOVACIÓN CAFE POR ZOCA 2017 DE 1 A 36 MESES ESQUEMA DE INTEGR. | C91: 5 | D91: 0 | E91: 1
B92: LEC RENOVACIÓN CAFE POR ZOCA 2017 DE 37 A 60 MESES JOVEN RURAL | C92: 5 | D92: 0 | E92: 2
B93: LEC RENOVACIÓN CAFE POR ZOCA 2017 DE 37 A 60 MESES PEQUEÑO PRODUCTOR | C93: 4 | D93: 0 | E93: 2
B94: LEC RENOVACIÓN CAFE POR ZOCA 2017 DE 37 A 60 MESES MEDIANO PRODUCTOR | C94: 3 | D94: 0 | E94: 4
B95: LEC RENOVACIÓN CAFE POR ZOCA 2017 DE 37 A 60 MESES ESQUEMA ASOC. | C95: 3 | D95: 0 | E95: 2
B96: LEC RENOVACIÓN CAFE POR ZOCA 2017 DE 37 A 60 MESES ESQUEMA DE INTEGR. | C96: 3 | D96: 0 | E96: 3
B97: LEC A TODA MAQUINA 2017 PEQUEÑO PRODUCTOR | C97: 3 | D97: 0 | E97: 2
B98: LEC A TODA MAQUINA 2017 MEDIANO PRODUCTOR | C98: 3 | D98: 0 | E98: 3
B99: LEC A TODA MAQUINA 2017 GRAN PRODUCTOR | C99: 3 | D99: 0 | E99: 4
B100: LEC COLOMBIA SIEMBRA 2018 DE 1 A 36 MESES JOVEN RURAL | C100: 7 | D100: 0 | E100: 0
B101: LEC COLOMBIA SIEMBRA 2018 DE 1 A 36 MESES PEQUEÑO PRODUCTOR | C101: 6 | D101: 0 | E101: 0
B102: LEC COLOMBIA SIEMBRA 2018 DE 1 A 36 MESES MEDIANO PRODUCTOR | C102: 6 | D102: 0 | E102: 1
B103: LEC COLOMBIA SIEMBRA 2018 DE 1 A 36 MESES GRAN PRODUCTOR | C103: 5 | D103: 0 | E103: 2
B104: LEC COLOMBIA SIEMBRA 2018 DE 1 A 36 MESES ESQUEMA ASOC. | C104: 5 | D104: 0 | E104: 0
B105: LEC COLOMBIA SIEMBRA 2018 DE 1 A 36 MESES ESQUEMA DE INTEGR. | C105: 6 | D105: 0 | E105: 0
B106: LEC COLOMBIA SIEMBRA 2018 DE 37 A 60 MESES JOVEN RURAL | C106: 5 | D106: 0 | E106: 1
B107: LEC COLOMBIA SIEMBRA 2018 DE 37 A 60 MESES PEQUEÑO PRODUCTOR | C107: 5 | D107: 0 | E107: 1
B108: LEC COLOMBIA SIEMBRA 2018 DE 37 A 60 MESES MEDIANO PRODUCTOR | C108: 4 | D108: 0 | E108: 3
B109: LEC COLOMBIA SIEMBRA 2018 DE 37 A 60 MESES GRAN PRODUCTOR | C109: 3 | D109: 0 | E109: 4
B110: LEC COLOMBIA SIEMBRA 2018 DE 37 A 60 MESES ESQUEMA ASOC. | C110: 4 | D110: 0 | E110: 1
B111: LEC COLOMBIA SIEMBRA 2018 DE 37 A 60 MESES ESQUEMA DE INTEGR. | C111: 4 | D111: 0 | E111: 2
B112: LEC GENERAL 2018 DE 1 A 36 MESES JOVEN RURAL | C112: 6 | D112: 0 | E112: 1
B113: LEC GENERAL 2018 DE 1 A 36 MESES PEQUEÑO PRODUCTOR | C113: 5 | D113: 0 | E113: 1
B114: LEC GENERAL 2018 DE 1 A 36 MESES MEDIANO PRODUCTOR | C114: 5 | D114: 0 | E114: 2
B115: LEC GENERAL 2018 DE 1 A 36 MESES ESQUEMA ASOC. | C115: 4 | D115: 0 | E115: 1
B116: LEC GENERAL 2018 DE 1 A 36 MESES ESQUEMA DE INTEGR. | C116: 5 | D116: 0 | E116: 1
B117: LEC GENERAL 2018 DE 37 A 60 MESES JOVEN RURAL | C117: 5 | D117: 0 | E117: 2
B118: LEC GENERAL 2018 DE 37 A 60 MESES PEQUEÑO PRODUCTOR | C118: 4 | D118: 0 | E118: 2
B119: LEC GENERAL 2018 DE 37 A 60 MESES MEDIANO PRODUCTOR | C119: 3 | D119: 0 | E119: 4
B120: LEC GENERAL 2018 DE 37 A 60 MESES ESQUEMA ASOC. | C120: 3 | D120: 0 | E120: 2
B121: LEC GENERAL 2018 DE 37 A 60 MESES ESQUEMA DE INTEGR. | C121: 3 | D121: 0 | E121: 3
B122: LEC RENOVACIÓN CAFE POR ZOCA 2018 DE 1 A 36 MESES JOVEN RURAL | C122: 6 | D122: 0 | E122: 1
B123: LEC RENOVACIÓN CAFE POR ZOCA 2018 DE 1 A 36 MESES PEQUEÑO PRODUCTOR | C123: 5 | D123: 0 | E123: 1
B124: LEC RENOVACIÓN CAFE POR ZOCA 2018 DE 1 A 36 MESES MEDIANO PRODUCTOR | C124: 5 | D124: 0 | E124: 2
B125: LEC RENOVACIÓN CAFE POR ZOCA 2018 DE 1 A 36 MESES ESQUEMA ASOC. | C125: 4 | D125: 0 | E125: 1
B126: LEC RENOVACIÓN CAFE POR ZOCA 2018 DE 1 A 36 MESES ESQUEMA DE INTEGR. | C126: 5 | D126: 0 | E126: 1
B127: LEC RENOVACIÓN CAFE POR ZOCA 2018 DE 37 A 60 MESES JOVEN RURAL | C127: 5 | D127: 0 | E127: 2
B128: LEC RENOVACIÓN CAFE POR ZOCA 2018 DE 37 A 60 MESES PEQUEÑO PRODUCTOR | C128: 4 | D128: 0 | E128: 2
B129: LEC RENOVACIÓN CAFE POR ZOCA 2018 DE 37 A 60 MESES MEDIANO PRODUCTOR | C129: 3 | D129: 0 | E129: 4
B130: LEC RENOVACIÓN CAFE POR ZOCA 2018 DE 37 A 60 MESES ESQUEMA ASOC. | C130: 3 | D130: 0 | E130: 2
B131: LEC RENOVACIÓN CAFE POR ZOCA 2018 DE 37 A 60 MESES ESQUEMA DE INTEGR. | C131: 3 | D131: 0 | E131: 3
B132: LEC A TODA MAQUINA 2018 PEQUEÑO PRODUCTOR | C132: 3 | D132: 0 | E132: 2
B133: LEC A TODA MAQUINA 2018 MEDIANO PRODUCTOR | C133: 3 | D133: 0 | E133: 3
B134: LEC A TODA MAQUINA 2018 GRAN PRODUCTOR | C134: 3 | D134: 0 | E134: 4
B135: LEC GENERAL 2019 | C135: 4.5 | D135: 0 | E135: 4
B136: UARIV 2014 | C136: 2 | D136: 0 | E136: 0
B137: UARIV 2015 | C137: 2 | D137: 0 | E137: 0
B138: UARIV 2015_II | C138: 2 | D138: 0 | E138: 0
B139: UARIV 2016 | C139: 2 | D139: 0 | E139: 0
B140: UARIV 2017 | C140: 2 | D140: 0 | E140: 0
B141: UARIV 2018 | C141: 2 | D141: 0 | E141: 0
B142: LEC A TODA MÁQUINA E INFRAESTRUCTURA 2019 PEQUEÑO PROD | C142: 3 | D142: 0 | E142: 2 | F142: 1.9
B143: LEC A TODA MÁQUINA E INFRAESTRUCTURA 2019 MEDIANO PROD | C143: 3 | D143: 0 | E143: 3 | F143: 2.9
B144: LEC A TODA MÁQUINA E INFRAESTRUCTURA 2019 GRANDE PROD | C144: 3 | D144: 0 | E144: 4 | F144: 3.9
B145: LEC GENERAL 2019 PEQUEÑO PRODUCTOR | C145: 4 | D145: 0 | E145: 2 | F145: 1.9
B146: LEC GENERAL 2019 MEDIANO PRODUCTOR | C146: 3 | D146: 0 | E146: 4 | F146: 3.9
B147: LEC GENERAL 2019 ESQUEMA ASOCIATIVO | C147: 3 | D147: 0 | E147: 2 | F147: 1.9
B148: LEC GENERAL 2019 ESQUEMA DE INTEGRACION | C148: 4 | D148: 0 | E148: 2 | F148: 1.9
B149: LEC GENERAL 2019 JOVEN RURAL | C149: 5 | D149: 0 | E149: 1 | F149: 0.9
B150: LEC GENERAL 2019 PEQUEÑO PRODUCTOR + CLUSTER UPRA | C150: 5.5 | D150: 0 | E150: 0.5 | F150: 0.4
B151: LEC GENERAL 2019 MEDIANO PRODUCTOR + CLUSTER UPRA | C151: 4.5 | D151: 0 | E151: 2.5 | F151: 2.4
B152: LEC GENERAL 2019 ESQUEMA ASOCIATIVO + CLUSTER UPRA | C152: 4.5 | D152: 0 | E152: 0.5 | F152: 0.4
B153: LEC GENERAL 2019 ESQUEMA DE INTEGRACION + CLUSTER UPRA | C153: 5.5 | D153: 0 | E153: 0.5 | F153: 0.4
B154: LEC GENERAL 2019 JOVEN RURAL + CLUSTER UPRA | C154: 6.5 | D154: 0 | E154: -0.5 | F154: -0.6
B155: LEC GRAL RETENCION DE VIENTRES GANADO BOVINO Y BUF 2019 PEQ.PROD | C155: 4 | D155: 0 | E155: 2 | F155: 1.9
B156: LEC GRAL RETENCION DE VIENTRES GANADO BOVINO Y BUF 2019 MED.PROD | C156: 3 | D156: 0 | E156: 4 | F156: 3.9
B157: LEC GRAL RETENCION DE VIENTRES GANADO BOVINO Y BUF 2019 GRANDE.PROD | C157: 2 | D157: 0 | E157: 5 | F157: 4.8
B158: LEC GRAL RETENCION DE VIENTRES GANADO BOVINO Y BUF 2019 ESQ.ASOC | C158: 3 | D158: 0 | E158: 2 | F158: 1.9
B159: LEC GRAL RETENCION DE VIENTRES GANADO BOVINO Y BUF 2019 ESQ.INTEG | C159: 4 | D159: 0 | E159: 2 | F159: 1.9
B160: LEC GENERAL 2019 MUJER PEQUEÑO PRODUCTOR | C160: 4.5 | D160: 0 | E160: 1.5 | F160: 1.4
B161: LEC GENERAL 2019 MUJER MEDIANO PRODUCTOR | C161: 3.5 | D161: 0 | E161: 3.5 | F161: 3.4
B162: LEC GENERAL 2019 MUJER ESQUEMA ASOCIATIVO | C162: 3.5 | D162: 0 | E162: 1.5 | F162: 1.4
B163: LEC GENERAL 2019 MUJER ESQUEMA DE INTEG. | C163: 4.5 | D163: 0 | E163: 1.5 | F163: 1.4
B164: LEC GENERAL 2019 MUJER JOVEN RURAL | C164: 5.5 | D164: 0 | E164: 0.5 | F164: 0.4
B165: LEC GENERAL 2019 MUJER PEQUEÑO PRODUCTOR + CLUSTER UPRA | C165: 6 | D165: 0 | E165: 0 | F165: 0
B166: LEC GENERAL 2019 MUJER MEDIANO PRODUCTOR + CLUSTER UPRA | C166: 5 | D166: 0 | E166: 2 | F166: 1.9
B167: LEC GENERAL 2019 MUJER ESQUEMA ASOCIATIVO + CLUSTER UPRA | C167: 5 | D167: 0 | E167: 0 | F167: 0
B168: LEC GENERAL 2019 MUJER ESQUEMA DE INTEG. + CLUSTER UPRA | C168: 6 | D168: 0 | E168: 0 | F168: 0
B169: LEC GENERAL 2019 MUJER JOVEN RURAL + CLUSTER UPRA | C169: 7 | D169: 0 | E169: -1 | F169: -1.1
B170: LEC GENERAL 2019 BUENAS PRAC Y/O SEG AGR PEQUEÑO PRODUCTOR | C170: 5 | D170: 0 | E170: 1 | F170: 0.9
B171: LEC GENERAL 2019 BUENAS PRAC Y/O SEG AGR MEDIANO PRODUCTOR | C171: 3.5 | D171: 0 | E171: 3.5 | F171: 3.4
B172: LEC GENERAL 2019 BUENAS PRAC Y/O SEG AGR ESQUEMA ASOCIATIVO | C172: 3.5 | D172: 0 | E172: 1.5 | F172: 1.4
B173: LEC GENERAL 2019 BUENAS PRAC Y/O SEG AGR ESQUEMA DE INTEG. | C173: 4.5 | D173: 0 | E173: 1.5 | F173: 1.4
B174: LEC GENERAL 2019 BUENAS PRAC Y/O SEG AGR JOVEN RURAL | C174: 5 | D174: 0 | E174: 1 | F174: 0.9
B175: LEC GENERAL 2019 BUENAS PRAC Y/O SEG AGR PEQUEÑO PRODUCTOR + CLUSTER | C175: 6.5 | D175: 0 | E175: -0.5 | F175: -0.6
B176: LEC GENERAL 2019 BUENAS PRAC Y/O SEG AGR MEDIANO PRODUCTOR + CLUSTER | C176: 5 | D176: 0 | E176: 2 | F176: 1.9
B177: LEC GENERAL 2019 BUENAS PRAC Y/O SEG AGR ESQUEMA ASOCIATIVO + CLUSTER | C177: 5 | D177: 0 | E177: 0 | F177: 0
B178: LEC GENERAL 2019 BUENAS PRAC Y/O SEG AGR ESQUEMA DE INTEG. + CLUSTER | C178: 6 | D178: 0 | E178: 0 | F178: 0
B179: LEC GENERAL 2019 BUENAS PRAC Y/O SEG AGR JOVEN RURAL + CLUSTER | C179: 6.5 | D179: 0 | E179: -0.5 | F179: -0.5
B180: LEC GENERAL 2019 MUJER-BUENAS PRAC Y/O SEG AGR PEQUEÑO PRODUCTOR | C180: 5.5 | D180: 0 | E180: 0.5 | F180: 0.4
B181: LEC GENERAL 2019 MUJER-BUENAS PRAC Y/O SEG AGR MEDIANO PRODUCTOR | C181: 4 | D181: 0 | E181: 3 | F181: 2.9
B182: LEC GENERAL 2019 MUJER-BUENAS PRAC Y/O SEG AGR ESQUEMA ASOCIATIVO | C182: 4 | D182: 0 | E182: 1 | F182: 0.9
B183: LEC GENERAL 2019 MUJER-BUENAS PRAC Y/O SEG AGR ESQUEMA DE INTEG. | C183: 5 | D183: 0 | E183: 1 | F183: 0.9
B184: LEC GENERAL 2019 MUJER-BUENAS PRAC Y/O SEG AGR JOVEN RURAL | C184: 5.5 | D184: 0 | E184: 0.5 | F184: 0.4
B185: LEC GENERAL 2019 MUJER-BUENAS PRAC Y/O SEG AGR PEQUEÑO PRODUCTOR + CLUSTER | C185: 7 | D185: 0 | E185: -1 | F185: -1.1
B186: LEC GENERAL 2019 MUJER-BUENAS PRAC Y/O SEG AGR MEDIANO PRODUCTOR + CLUSTER | C186: 5.5 | D186: 0 | E186: 1.5 | F186: 1.4
B187: LEC GENERAL 2019 MUJER-BUENAS PRAC Y/O SEG AGR ESQUEMA ASOCIATIVO + CLUSTER | C187: 5.5 | D187: 0 | E187: -0.5 | F187: -0.5
B188: LEC GENERAL 2019 MUJER-BUENAS PRAC Y/O SEG AGR ESQUEMA DE INTEG. + CLUSTER | C188: 6.5 | D188: 0 | E188: -0.5 | F188: -0.5
B189: LEC GENERAL 2019 MUJER-BUENAS PRAC Y/O SEG AGR JOVEN RURAL + CLUSTER | C189: 7 | D189: 0 | E189: -1 | F189: -1.1
B190: LEC LEASING CON OPCION DE COMPRA A TODA MAQ E INFR 2019 PEQUEÑO PROD. | C190: 3 | D190: 0 | E190: 2 | F190: 1.9
B191: LEC LEASING CON OPCION DE COMPRA A TODA MAQ E INFR 2019 MEDIANO PROD. | C191: 3 | D191: 0 | E191: 3 | F191: 2.9
B192: LEC LEASING CON OPCION DE COMPRA A TODA MAQ E INFR 2019 GRANDE PROD. | C192: 3 | D192: 0 | E192: 4 | F192: 3.9
B193: LEC LEASING SIN OPCION DE COMPRA A TODA MAQ E INFR 2019 PEQUEÑO PROD. | C193: 3 | D193: 0 | E193: 2 | F193: 1.9
B194: LEC LEASING SIN OPCION DE COMPRA A TODA MAQ E INFR 2019 MEDIANO PROD. | C194: 3 | D194: 0 | E194: 3 | F194: 2.9
B195: LEC LEASING SIN OPCION DE COMPRA A TODA MAQ E INFR 2019 GRANDE PROD. | C195: 3 | D195: 0 | E195: 4 | F195: 3.9
B196: LEC 2019 AFECTADOS VIA PANAMERICANA PEQUEÑO PRODUCTOR | C196: 6 | D196: 0 | E196: 0 | F196: 0
B197: LEC 2019 AFECTADOS VIA PANAMERICANA MEDIANO PRODUCTOR | C197: 6 | D197: 0 | E197: 1 | F197: 0.9
B198: LEC 2019 AFECTADOS VIA PANAMERICANA GRANDE PRODUCTOR | C198: 5 | D198: 0 | E198: 2 | F198: 1.9
B199: LEC 2019 PLAN DE IMPACTO FRONTERA VENEZUELA PEQUEÑO PRODUCTOR | C199: 6 | D199: 0 | E199: 0 | F199: 0
B200: LEC 2019 PLAN DE IMPACTO FRONTERA VENEZUELA MEDIANO PRODUCTOR | C200: 6 | D200: 0 | E200: 1 | F200: 0.9
... 6 more rows
